fUSD/lending_fUSD_20250702
["ID","MTS","AMOUNT","RATE_DAILY","PERIOD"]
[369090589,1751467949276,-460.0,0.00032876,12]
[369090590,1751467949307,-492.79,0.00032876,12]
[369090591,1751467949333,-460.0,0.00032876,12]
[369090592,1751467949359,-520.90161288,0.00032876,12]
[369090593,1751467949383,-523.20019129,0.00032876,12]
[369090594,1751467949407,-570.96,0.00032876,12]
[369090595,1751467949431,-490.0,0.00032876,12]
[369090596,1751467949456,-151.0,0.00032876,7]
[369090597,1751467949481,-460.0,0.00032876,12]
[369090598,1751467949506,-523.53564366,0.00032876,12]
[369090599,1751467949531,-460.0,0.00032876,12]
[369090600,1751467949557,-460.0,0.00032876,12]
[369090601,1751467949582,-460.0,0.00032876,12]
[369090602,1751467949608,-460.0,0.00032876,12]
[369090603,1751467949634,-492.20160503,0.00032876,12]
[369090604,1751467949660,-460.0,0.00032876,12]
[369090605,1751467949685,-460.0,0.00032876,12]
[369090606,1751467949710,-460.0,0.00032876,12]
[369090607,1751467949743,-520.0,0.00032876,12]
[369090608,1751467949773,-460.0,0.00032876,12]
[369090609,1751467949802,-1818.42,0.00032876,12]
[369090610,1751467949827,-460.0,0.00032876,12]
[369090611,1751467949853,-468.54,0.00032876,12]
[369090612,1751467949878,-460.0,0.00032876,12]
[369090613,1751467949905,-234.31349547,0.00032876,12]
[369090614,1751467949930,-490.0,0.00032876,12]
[369090615,1751467949958,-1163.19,0.00032876,12]
[369090616,1751467949984,-1567.5,0.00032876,12]
[369090617,1751467950009,-460.0,0.00032876,12]
[369090618,1751467950034,-460.0,0.00032876,7]
[369090619,1751467950060,-460.0,0.00032876,12]
[369090620,1751467950087,-460.0,0.00032876,12]
[369090621,1751467950115,-460.58,0.00032876,12]
[369090622,1751467950138,-460.0,0.00032876,12]
[369090623,1751467950163,-460.0,0.00032876,12]
[369090624,1751467950186,-460.0,0.00032876,12]
[369090625,1751467950212,-332.10528616,0.00032876,12]
[369090626,1751467950237,-2008.78,0.00032876,12]
[369090627,1751467950262,-491.37292315,0.00032876,12]
[369090628,1751467950287,-460.0,0.00032876,12]
[369090629,1751467950313,-778.19,0.00032876,12]
[369090630,1751467950337,-490.0,0.00032876,12]
[369090631,1751467950362,-151.0,0.00032876,7]
[369090632,1751467950386,-491.84303642,0.00032876,12]
[369090633,1751467950412,-460.0,0.00032876,12]
[369090634,1751467950438,-151.0,0.00032876,7]
[369090635,1751467950464,-151.0,0.00032876,7]
[369090636,1751467950490,-151.0,0.00032876,7]
[369090637,1751467950515,-151.0,0.00032876,7]
[369090638,1751467950543,-151.0,0.00032876,7]
[369090639,1751467950567,-460.0,0.00032876,12]
[369090640,1751467950593,-201.885191,0.00032876,7]
[369090641,1751467950617,-460.0,0.00032876,12]
[369090642,1751467950642,-491.06816262,0.00032876,12]
[369090643,1751467950666,-460.0,0.00032876,12]
[369090644,1751467950692,-460.0,0.00032876,12]
[369090645,1751467950716,-460.0,0.00032876,12]
[369090646,1751467950743,-425.49035528,0.00032876,12]
[369090647,1751467950768,-460.0,0.00032876,12]
[369090648,1751467950796,-460.0,0.00032876,12]
[369090649,1751467950823,-460.0,0.00032876,12]
[369090650,1751467950851,-927.59,0.00032876,12]
[369090651,1751467950880,-460.0,0.00032876,12]
[369090652,1751467950912,-460.0,0.00032876,12]
[369090653,1751467950939,-490.0,0.00032876,12]
[369090654,1751467950968,-460.0,0.00032876,12]
[369090655,1751467950997,-490.0,0.00032876,12]
[369090656,1751467951024,-460.0,0.00032876,12]
[369090657,1751467951057,-637.89,0.00032876,12]
[369090658,1751467951084,-1111.78,0.00032876,12]
[369090659,1751467951110,-460.0,0.00032876,12]
[369090660,1751467951136,-890.43,0.00032876,12]
[369090661,1751467951161,-460.0,0.00032876,12]
[369090662,1751467951185,-460.0,0.00032876,12]
[369090663,1751467951209,-460.0,0.00032876,12]
[369090664,1751467951233,-460.0,0.00032876,12]
[369090665,1751467951257,-460.0,0.00032876,12]
[369090666,1751467951294,-460.0,0.00032876,12]
[369090667,1751467951324,-460.0,0.00032876,12]
[369090668,1751467951350,-460.0,0.00032876,12]
[369090669,1751467951375,-327.21030412,0.00032876,12]
[369090670,1751467951400,-460.0,0.00032876,12]
[369090671,1751467951424,-460.0,0.00032876,12]
[369090672,1751467951450,-460.0,0.00032876,12]
[369090673,1751467951683,-460.0,0.00032876,12]
[369090674,1751467951713,-460.0,0.00032876,12]
[369090675,1751467951739,-151.0,0.00032876,7]
[369090676,1751467951765,-151.0,0.00032876,7]
[369090677,1751467951793,-151.0,0.00032876,7]
[369090678,1751467951818,-460.0,0.00032876,12]
[369090679,1751467951844,-1151.19,0.00032876,12]
[369090680,1751467951868,-151.0,0.00032876,7]
[369090681,1751467951893,-294.44846,0.00032876,7]
[369090682,1751467951919,-460.0,0.00032876,12]
[369090683,1751467951943,-460.0,0.00032876,12]
[369090684,1751467951970,-531.26,0.00032876,12]
[369090685,1751467951994,-460.0,0.00032876,12]
[369090686,1751467952019,-528.95,0.00032876,12]
[369090687,1751467952048,-500.0,0.00032876,12]
[369090688,1751467952074,-500.0,0.00032876,12]
[369090689,1751467952099,-460.0,0.00032876,12]
[369090690,1751467952128,-460.0,0.00032876,12]
[369090691,1751467952154,-460.0,0.00032876,12]
[369090692,1751467952180,-500.0,0.00032876,12]
[369090693,1751467952534,-500.0,0.00032876,12]
[369090694,1751467952559,-500.0,0.00032876,12]
[369090695,1751467952584,-291.58,0.00032876,12]
[369090696,1751467952608,-460.0,0.00032876,12]
[369090697,1751467952634,-1153.75,0.00032876,12]
[369090698,1751467952659,-460.0,0.00032876,12]
[369090699,1751467952686,-460.0,0.00032876,12]
[369090700,1751467952713,-460.0,0.00032876,12]
[369090701,1751467952738,-460.0,0.00032876,12]
[369090702,1751467952763,-595.67,0.00032876,12]
[369090703,1751467952786,-490.0,0.00032876,12]
[369090704,1751467952811,-460.0,0.00032876,12]
[369090705,1751467952835,-2107.25,0.00032876,12]
[369090706,1751467952858,-460.0,0.00032876,12]
[369090707,1751467952881,-460.0,0.00032876,12]
[369090708,1751467952908,-492.02,0.00032876,12]
[369090709,1751467952935,-1668.47,0.00032876,12]
[369090710,1751467952960,-460.0,0.00032876,12]
[369090711,1751467952984,-460.0,0.00032876,12]
[369090712,1751467953009,-460.0,0.00032876,12]
[369090713,1751467953033,-460.0,0.00032876,12]
[369090714,1751467953058,-490.0,0.00032876,12]
[369090715,1751467953083,-460.0,0.00032876,12]
[369090716,1751467953108,-460.0,0.00032876,12]
[369090717,1751467953132,-460.0,0.00032876,12]
[369090718,1751467953158,-460.0,0.00032876,12]
[369090719,1751467953183,-321.18452723,0.00032876,12]
[369090720,1751467953207,-1341.97,0.00032876,12]
[369090721,1751467953233,-484.21,0.00032876,12]
[369090722,1751467953258,-578.0,0.00032876,12]
[369090723,1751467953284,-460.0,0.00032876,12]
[369090724,1751467953310,-460.0,0.00032876,12]
[369090725,1751467953335,-460.0,0.00032876,12]
[369090726,1751467953369,-460.0,0.00032876,12]
[369090727,1751467953395,-460.0,0.00032876,12]
[369090728,1751467953420,-460.0,0.00032876,12]
[369090729,1751467953446,-481.50533755,0.00032876,12]
[369090730,1751467953471,-460.0,0.00032876,12]
[369090731,1751467953497,-460.0,0.00032876,12]
[369090732,1751467953522,-490.0,0.00032876,12]
[369090733,1751467953547,-460.0,0.00032876,12]
[369090734,1751467953573,-318.01187527,0.00032876,12]
[369090736,1751468105269,15000.0,1e-05,90]
[369090737,1751468105321,26212.67323093,1e-05,90]
[369090738,1751468403160,1159.60150832,1e-05,90]
[369090740,1751468409637,188.73,0.00013699,2]
[369090741,1751468546621,168.74,0.00016712,2]
[369090742,1751468702306,595.0,0.0002739,120]
[369090743,1751468770274,151.0,0.00016712,2]
[369090748,1751468997641,-927.0,0.00025,3]
[369090749,1751468997665,-156.0,0.00025,7]
[369090754,1751469032118,-545.44642781,0.000249,2]
[369090755,1751469032130,-462.18005561,0.000249,2]
[369090756,1751469032139,-39.66962581,0.0003,7]
[369090757,1751469032151,-568.0063,0.0003,7]
[369090758,1751469032163,-169.94191502,0.0003,7]
[369090759,1751469032174,-518.0,0.00031226,2]
[369090760,1751469032184,-523.0,0.00031226,2]
[369090761,1751469032195,-150.0,0.0003133,2]
[369090762,1751469032205,-200.0,0.00031375,2]
[369090763,1751469032215,-4516.7114217,0.0003162,2]
[369090764,1751469032224,-150.0,0.0003165,2]
[369090765,1751469032236,-200.0,0.00031662,7]
[369090766,1751469032246,-1200.0,0.00031668,3]
[369090767,1751469032255,-400.0,0.00031668,2]
[369090768,1751469032265,-1000.0,0.00031669,2]
[369090769,1751469032276,-5530.66,0.00031669,2]
[369090770,1751469032285,-298.2613045,0.00031684,2]
[369090771,1751469032295,-412.93,0.00031785,2]
[369090772,1751469032304,-21688.36,0.00031785,2]
[369090773,1751469032316,-487.111,0.00031785,30]
[369090774,1751469032326,-3233.95001294,0.00031796,2]
[369090775,1751469032358,-1430.989332,0.00031796,2]
[369090776,1751469032370,-335.06065506,0.00031796,2]
[369090777,1751469032380,-253.15,0.00031862,2]
[369090778,1751469032389,-284.32,0.00031874,120]
[369090779,1751469032399,-179.51,0.00031886,2]
[369090780,1751469032409,-211.91033033,0.000319,25]
[369090781,1751469032419,-200.0,0.00032,2]
[369090782,1751469032428,-37.49966431,0.00032107,26]
[369090783,1751469032460,-174.41066592,0.00032107,26]
[369090784,1751469032469,-147.26433408,0.00032167,2]
[369090785,1751469032482,-2.73566592,0.00032167,2]
[369090787,1751469032491,-211.91033023,0.00032314,26]
[369090789,1751469032500,-211.91033023,0.00032521,27]
[369090791,1751469032510,-1172.88736,0.0003255,2]
[369090793,1751469032519,-206.9548,0.00032579,30]
[369090794,1751469032528,-461.13291337,0.00032686,4]
[369090795,1751469032549,-4388.08708663,0.00032686,4]
[369090796,1751469032558,-211.91033023,0.00032728,27]
[369090797,1751469032568,-299.86258475,0.00032756,2]
[369090798,1751469032577,-299.86258457,0.00032763,2]
[369090799,1751469032586,-2868.47290797,0.00032765,2]
[369090800,1751469032595,-276.47707157,0.00032766,2]
[369090801,1751469032605,-299.86258457,0.0003277,2]
[369090802,1751469032614,-545.211671,0.00032775,16]
[369090803,1751469032624,-203.2541823,0.00032776,2]
[369090804,1751469032633,-299.86258457,0.00032777,2]
[369090805,1751469032642,-299.86258457,0.00032783,2]
[369090806,1751469032652,-299.86258457,0.0003279,2]
[369090807,1751469032661,-4849.19,0.00032795,4]
[369090808,1751469032671,-299.86258457,0.00032797,2]
[369090809,1751469032680,-150.0,0.000328,2]
[369090810,1751469032689,-500.941429,0.000328,10]
[369090811,1751469032699,-2868.47290796,0.00032803,2]
[369090812,1751469032709,-276.47707153,0.00032803,2]
[369090813,1751469032718,-276.47707153,0.0003284,2]
[369090814,1751469032727,-2868.47290796,0.0003284,2]
[369090815,1751469032737,-3080.34685171,0.00032847,5]
[369090816,1751469032749,-210875.00000498,0.00032847,5]
[369090817,1751469032765,-540.45739617,0.00032847,5]
[369090818,1751469032821,-700.0,0.00032847,5]
[369090819,1751469032832,-1706.49592439,0.00032847,5]
[369090820,1751469032846,-1262.99999114,0.00032847,5]
[369090821,1751469032858,-1707.88411681,0.00032847,5]
[369090848,1751469038985,-299.86258457,0.00032804,2]
[369090849,1751469038996,-558.5135044,0.00032846,2]
[369090850,1751469039006,-389.35240347,0.00032846,2]
[369090851,1751469039015,-398.03671646,0.00032846,2]
[369090852,1751469039024,-500.0,0.00032846,2]
[369090853,1751469039034,-1675.036424,0.00032847,5]
[369090854,1751469039047,-2168.7055532,0.00032847,5]
[369090855,1751469039059,-5135.85072,0.00032847,5]
[369090856,1751469039074,-10842.0,0.00032847,5]
[369090857,1751469039085,-4378.35628203,0.00032847,5]
[369090858,1751469039251,-5620805.26833374,0.00032847,5]
[369090859,1751469039281,-419.34094197,0.00032847,5]
[369090863,1751469040230,-1181.98769149,0.00032847,5]
[369090864,1751469040245,-1379.27248604,0.00032847,5]
[369090865,1751469040256,-8240.41788773,0.00032847,5]
[369090866,1751469040267,-2167.3847426,0.00032847,5]
[369090867,1751469040320,-1255.1831255,0.00032847,5]
[369090868,1751469040332,-2524.64211898,0.00032847,5]
[369090878,1751469043246,-299.86258457,0.00032811,2]
[369090879,1751469043256,-5489.37121543,0.00032847,5]
[369090897,1751469046193,-299.86258457,0.00032818,2]
[369090898,1751469046203,-2172.23741539,0.00032847,5]
[369090899,1751469046370,-1457.39108971,0.00032847,5]
[369090902,1751469054546,-37309.70937287,0.00032847,5]
[369090904,1751469439560,155.02,0.00013699,2]
[369090905,1751469576062,150.0,0.00020104,2]
[369090906,1751469603196,1064.36055697,1e-05,90]
[369090907,1751469618394,500.0,0.00020104,2]
[369090908,1751469631450,503.8,0.00020104,2]
[369090909,1751469722085,300.0,0.0002679,120]
[369090910,1751469846586,300.0,0.0002679,120]
[369090911,1751469908196,10000.0,0.00014,2]
[369090912,1751469908241,10000.0,0.00014,2]
[369090913,1751469908284,10000.0,0.00014,2]
[369090914,1751469908316,10000.0,0.00014,2]
[369090915,1751469908347,10000.0,0.00014,2]
[369090916,1751469908384,10000.0,0.00014,2]
[369090917,1751469908420,10000.0,0.00014,2]
[369090918,1751469908449,10000.0,0.00014,2]
[369090919,1751469908475,2085.36189123,0.00014,2]
[369090920,1751469928832,8466.42376138,0.000273,120]
[369090921,1751470015331,-1579.36452,0.00023,2]
[369090922,1751470015354,-1579.36452,0.000235,2]
[369090923,1751470015376,-9983.88473644,0.00024,14]
[369090924,1751470015398,-1579.36453,0.00024,2]
[369090925,1751470015421,-1579.36452,0.000245,2]
[369090926,1751470015444,-1579.36452,0.00025,2]
[369090927,1751470015467,-1579.36453,0.000255,2]
[369090928,1751470018098,539.92812356,0.00016712,2]
[369090929,1751470018124,7295.49604238,0.00016712,2]
[369090937,1751470079587,-10000.0023386,0.00024,5]
[369090938,1751470081289,300.0,0.00023999,2]
[369090939,1751470102374,1000.0,0.000135,2]
[369090943,1751470124781,4999.9976614,0.000151,2]
[369090944,1751470124807,619.14206639,0.000151,2]
[369090945,1751470124831,10000.0,0.000151,2]
[369090946,1751470124858,48053.59260184,0.000151,2]
[369090947,1751470129362,5147.67932179,0.00013368,2]
[369090964,1751470232296,-1000.0,0.00023,14]
[369090965,1751470232305,-300.0,0.00024,2]
[369090967,1751470232314,-454.187936,0.00025,7]
[369090968,1751470232323,-300.0,0.000253,2]
[369090970,1751470232333,-250.0,0.000253,2]
[369090972,1751470232342,-348.12195,0.000255,2]
[369090974,1751470232352,-380.56537697,0.000259,14]
[369090975,1751470232363,-380.56537674,0.00026245,14]
[369090977,1751470232372,-300.0,0.000264,2]
[369090978,1751470232382,-380.56537674,0.0002659,15]
[369090979,1751470232391,-354.96285496,0.0002669,2]
[369090980,1751470232401,-250.0,0.0002679,2]
[369090981,1751470232410,-380.56537674,0.00026934,16]
[369090982,1751470232419,-380.56537674,0.00027279,16]
[369090983,1751470232429,-870.05631478,0.00027498,2]
[369090984,1751470232438,-348.12195,0.000275,2]
[369090985,1751470232447,-1080.0,0.00027557,2]
[369090986,1751470232457,-380.56537674,0.00027624,17]
[369090987,1751470232467,-168.533993,0.00027829,2]
[369090988,1751470232476,-380.56537674,0.00027969,18]
[369090989,1751470232486,-300.0,0.00028272,2]
[369090990,1751470232495,-300.0,0.00028272,2]
[369090991,1751470232506,-1200.0,0.00028272,2]
[369090992,1751470232516,-151.0,0.00028273,2]
[369090993,1751470232525,-151.0,0.00028273,2]
[369090994,1751470232535,-151.0,0.00028273,2]
[369090995,1751470232545,-151.0,0.00028273,2]
[369090996,1751470232554,-151.0,0.00028273,2]
[369090997,1751470232563,-151.0,0.00028273,2]
[369090998,1751470232573,-151.0,0.00028273,2]
[369090999,1751470232587,-151.0,0.00028273,2]
[369091000,1751470232596,-151.0,0.00028273,2]
[369091001,1751470232606,-151.0,0.00028273,2]
[369091002,1751470232616,-151.0,0.00028273,2]
[369091003,1751470232627,-380.56537674,0.00028314,18]
[369091004,1751470232636,-380.56537674,0.00028659,19]
[369091005,1751470232646,-354.96285494,0.00028775,2]
[369091006,1751470232656,-250.0,0.00028919,2]
[369091007,1751470232666,-300.0,0.00028919,120]
[369091009,1751470232675,-200.0,0.00028934,2]
[369091011,1751470232684,-1491.83671124,0.00029,2]
[369091013,1751470232694,-152.0,0.00029,120]
[369091014,1751470232703,-300.0,0.00029,2]
[369091016,1751470232712,-380.56537674,0.00029003,20]
[369091017,1751470232721,-150.0,0.00029024,2]
[369091018,1751470232731,-1000.0,0.00029118,2]
[369091019,1751470232740,-207.67296579,0.0002913,2]
[369091022,1751470232750,-9331.71,0.00029144,2]
[369091023,1751470232760,-296.0,0.000292,2]
[369091024,1751470232769,-168.0,0.00029217,2]
[369091025,1751470232779,-7255.24035243,0.00029217,3]
[369091027,1751470232788,-509.0,0.00029226,2]
[369091029,1751470232797,-516.0,0.00029226,2]
[369091030,1751470232807,-1347.0,0.00029335,2]
[369091033,1751470232816,-424.01417655,0.00029335,2]
[369091035,1751470232825,-380.56537674,0.00029348,20]
[369091037,1751470232835,-322.0,0.00029375,2]
[369091039,1751470232844,-150.0,0.00029452,2]
[369091040,1751470232854,-348.12196,0.000295,2]
[369091041,1751470232864,-150.0,0.00029569,2]
[369091042,1751470232874,-150.0,0.00029592,2]
[369091043,1751470232883,-380.56537674,0.00029693,21]
[369091044,1751470232893,-150.0,0.00029765,2]
[369091045,1751470232902,-150.0,0.00029816,2]
[369091046,1751470232911,-150.0,0.00029941,2]
[369091047,1751470232920,-601.46380117,0.0002999,2]
[369091048,1751470232930,-150.0,0.00029991,2]
[369091049,1751470232941,-6873.03475123,0.0003,10]
[369091050,1751470232950,-10982.74743901,0.0003,5]
[369091051,1751470232960,-288.18569056,0.0003,2]
[369091052,1751470232969,-489.999999,0.0003,2]
[369091053,1751470232979,-200.0,0.00030009,7]
[369091054,1751470232988,-150.0,0.00030022,2]
[369091055,1751470232997,-380.56537674,0.00030038,22]
[369091056,1751470233006,-404.29,0.00030083,2]
[369091057,1751470233016,-1000.0,0.0003015,2]
[369091058,1751470233026,-150.0,0.0003015,2]
[369091059,1751470233035,-150.0,0.00030162,2]
[369091060,1751470233045,-2448.59,0.00030367,2]
[369091061,1751470233054,-380.56537674,0.00030383,22]
[369091062,1751470233064,-150.0,0.00030402,2]
[369091063,1751470233073,-168.0,0.00030487,2]
[369091064,1751470233082,-420.0,0.00030525,2]
[369091065,1751470233092,-168.763,0.00030544,26]
[369091066,1751470233101,-1323.288,0.00030544,26]
[369091067,1751470233112,-150.0,0.00030629,2]
[369091068,1751470233121,-1680.0,0.00030658,2]
[369091069,1751470233131,-1982.94,0.00030659,2]
[369091070,1751470233140,-380.56537674,0.00030728,23]
[369091071,1751470233149,-150.0,0.00030747,2]
[369091072,1751470233160,-5000.0,0.00030814,2]
[369091073,1751470233169,-354.96285494,0.00030859,2]
[369091074,1751470233179,-150.0,0.00030862,2]
[369091075,1751470233189,-660.24,0.00030945,10]
[369091076,1751470233199,-13579.59991071,0.00030949,2]
[369091077,1751470233208,-935.24,0.00030959,2]
[369091078,1751470233218,-1015.88,0.00030961,2]
[369091079,1751470233227,-150.0,0.00030987,2]
[369091080,1751470233237,-1746.7751148,0.00031,32]
[369091081,1751470233246,-150.0,0.00031005,2]
[369091082,1751470233256,-200.0,0.00031012,2]
[369091083,1751470233266,-380.56537674,0.00031072,24]
[369091084,1751470233276,-489.999999,0.0003121,2]
[369091085,1751470233285,-836.11932155,0.00031214,2]
[369091086,1751470233294,-207.4,0.00031215,2]
[369091087,1751470233305,-300.0,0.00031215,2]
[369091088,1751470233314,-500.0,0.00031215,2]
[369091089,1751470233323,-151.0,0.00031215,2]
[369091090,1751470233333,-500.0,0.00031215,2]
[369091091,1751470233342,-202.43536349,0.00031215,2]
[369091092,1751470233351,-500.0,0.00031215,2]
[369091093,1751470233362,-6912.642,0.00031215,2]
[369091094,1751470233372,-500.0,0.00031215,2]
[369091095,1751470233382,-300.0,0.00031215,2]
[369091096,1751470233392,-500.0,0.00031215,2]
[369091097,1751470233402,-300.0,0.00031215,2]
[369091098,1751470233413,-300.0,0.00031215,2]
[369091099,1751470233423,-500.0,0.00031215,2]
[369091100,1751470233433,-300.0,0.00031215,2]
[369091101,1751470233443,-500.0,0.00031215,2]
[369091102,1751470233453,-300.0,0.00031215,2]
[369091103,1751470233463,-500.0,0.00031215,2]
[369091104,1751470233474,-300.0,0.00031215,2]
[369091105,1751470233484,-500.0,0.00031215,2]
[369091106,1751470233495,-300.0,0.00031215,2]
[369091107,1751470233505,-300.0,0.00031215,2]
[369091108,1751470233516,-300.0,0.00031215,2]
[369091109,1751470233526,-448.76221336,0.00031215,2]
[369091110,1751470233539,-1000.0,0.00031215,2]
[369091111,1751470233549,-636.99495754,0.00031215,2]
[369091112,1751470233560,-1844.18304569,0.0003127,2]
[369091113,1751470233570,-156.98,0.00031345,2]
[369091114,1751470233584,-156.98,0.00031356,2]
[369091115,1751470233594,-156.98,0.00031366,2]
[369091116,1751470233603,-156.98,0.00031377,2]
[369091117,1751470233614,-156.98,0.00031387,2]
[369091118,1751470233624,-156.98,0.00031397,2]
[369091119,1751470233634,-156.98,0.00031408,2]
[369091120,1751470233644,-380.56537674,0.00031417,24]
[369091121,1751470233654,-156.98,0.00031418,2]
[369091122,1751470233665,-156.98,0.00031429,2]
[369091123,1751470233675,-156.98,0.00031439,2]
[369091124,1751470233686,-150.0,0.00031444,2]
[369091125,1751470233696,-156.98,0.0003145,2]
[369091126,1751470233708,-156.98,0.0003146,2]
[369091127,1751470233718,-156.98,0.0003147,2]
[369091128,1751470233729,-156.98,0.00031481,2]
[369091129,1751470233741,-2346.97,0.00031482,7]
[369091130,1751470233753,-156.98,0.00031491,2]
[369091131,1751470233765,-2110.0,0.000315,2]
[369091132,1751470233776,-348.12195,0.000315,2]
[369091133,1751470233788,-156.98,0.00031502,2]
[369091134,1751470233799,-181.44,0.00031548,120]
[369091135,1751470233809,-250.0,0.00031588,2]
[369091136,1751470233819,-150.0,0.00031712,2]
[369091137,1751470233830,-380.56537674,0.00031762,25]
[369091138,1751470233840,-150.0,0.00031773,2]
[369091139,1751470233850,-150.0,0.00031815,2]
[369091140,1751470233862,-150.0,0.00031816,2]
[369091141,1751470233873,-166.75,0.00031867,2]
[369091142,1751470233884,-201.32,0.00031874,2]
[369091143,1751470233894,-150.0,0.0003188,2]
[369091144,1751470233905,-1060.77741,0.00031889,16]
[369091145,1751470233915,-150.0,0.00031892,2]
[369091146,1751470233926,-150.0,0.00031913,2]
[369091147,1751470233936,-150.0,0.00031946,2]
[369091148,1751470233947,-150.0,0.00031979,2]
[369091149,1751470233957,-1000.0,0.00032,3]
[369091150,1751470233968,-1000.0,0.00032,2]
[369091151,1751470233978,-2110.0,0.00032,2]
[369091152,1751470233989,-509.0,0.00032024,7]
[369091153,1751470233999,-150.0,0.00032034,2]
[369091154,1751470234009,-150.0,0.00032035,2]
[369091155,1751470234020,-168.0,0.00032071,2]
[369091156,1751470234029,-380.56537674,0.00032107,26]
[369091157,1751470234040,-150.0,0.00032152,2]
[369091158,1751470234050,-150.0,0.00032257,2]
[369091159,1751470234061,-300.0,0.000323,11]
[369091160,1751470234071,-150.0,0.00032318,2]
[369091161,1751470234082,-150.0,0.00032347,2]
[369091162,1751470234092,-150.0,0.00032383,2]
[369091163,1751470234102,-700.0,0.000324,11]
[369091164,1751470234115,-150.0,0.00032436,2]
[369091165,1751470234126,-380.56537674,0.00032452,26]
[369091166,1751470234138,-1977.72010715,0.00032455,10]
[369091167,1751470234295,-11439.79917068,0.00032455,10]
[369091168,1751470234334,-1011.01,0.00032455,10]
[369091169,1751470234346,-95101.12072217,0.00032455,10]
[369091170,1751470234356,-23682.71,0.00032497,10]
[369091171,1751470234368,-2110.0,0.000325,2]
[369091172,1751470234378,-1000.0,0.000325,11]
[369091173,1751470234388,-1874.57946299,0.00032507,2]
[369091174,1751470234399,-318.94,0.0003252,2]
[369091175,1751470234409,-5957.6959403,0.0003252,2]
[369091176,1751470234419,-150.0,0.00032526,2]
[369091177,1751470234429,-1874.57946294,0.00032561,2]
[369091178,1751470234440,-168.0,0.00032575,2]
[369091179,1751470234450,-215.0738,0.00032584,2]
[369091180,1751470234461,-1000.0,0.00032599,2]
[369091181,1751470234471,-1400.0,0.000326,11]
[369091182,1751470234481,-5676.32,0.000326,4]
[369091183,1751470234492,-200.0,0.00032607,2]
[369091184,1751470234502,-150.0,0.00032607,2]
[369091185,1751470234512,-150.0,0.00032615,2]
[369091186,1751470234522,-150.0,0.00032618,2]
[369091187,1751470234532,-150.0,0.00032619,2]
[369091188,1751470234542,-150.0,0.00032624,2]
[369091189,1751470234553,-150.0,0.00032652,2]
[369091190,1751470234562,-745.80925495,0.000327,2]
[369091191,1751470234572,-745.80925491,0.000327,2]
[369091192,1751470234586,-745.80925491,0.000327,2]
[369091193,1751470234597,-745.80925491,0.000327,2]
[369091194,1751470234607,-1700.0,0.000327,11]
[369091195,1751470234617,-1000.0,0.000327,7]
[369091196,1751470234629,-5676.28,0.000327,4]
[369091197,1751470234639,-1000.0,0.000327,7]
[369091198,1751470234649,-745.80925491,0.00032704,2]
[369091199,1751470234663,-500.0,0.00032712,2]
[369091200,1751470234674,-500.0,0.00032712,2]
[369091201,1751470234685,-500.0,0.00032712,2]
[369091202,1751470234696,-500.0,0.00032712,2]
[369091203,1751470234706,-500.0,0.00032712,2]
[369091204,1751470234716,-500.0,0.00032712,2]